{"text_format":"1","workbook":"xlsx","n_sheets":3,"sheets":["systemOptionSheet","systemWorkingSheet","TreeMap"],"not_rendered":{"charts":0,"images":0,"macros":1,"external_links":0,"defined_names":0,"comments":0,"pivot_tables":0},"unopened":[],"bounds":{"document_bytes":16777216,"sheet_cells":100000,"rows_first":2000,"rows_last":500,"rows_between":2000,"halvings":0,"cell_chars":16384,"cell_head_chars":4096},"cells_cut":0,"cells_raw":0,"read":"whole","date_system":"1900"}

{"sheet":"systemOptionSheet","index":0,"n_rows":18,"n_cols":6,"rows_kept":18,"cut":false,"hidden":true,"merged":[]}
[{"$f":"ADDRESS(ROW(D18),COLUMN(D18))","v":"$D$18"}]
[{"$f":"ADDRESS(ROW(C2),COLUMN(C2))","v":"$C$2"},"systemName","TreeMap"]
["$C$3","version","ver.β1.2  2016/03/23"]
["$C$4","DrawAreaSheetName","TreeMap"]
["$C$5","axisCheck","○"]
["$C$6","sumCheck","○"]
["$C$7","repairCheck","○"]
["$C$8","consoleTop",182.25]
["$C$9","consoleLeft",541.5]
["$C$10","optionTop",253.5]
["$C$11","optionLeft",704.25]
["$C$12","axisFontSize",10]
[]
[]
[]
[]
[]
[null,null,null,null,null,"枠線は、各Shapeの枠線ではなく、独立した四角形をShapeの内側に描くようにすること。それで、隣接四角にはみ出すことがなくなる。\r\n\r\n文字スタイルは、太字、斜体も採用するように FontClass のプロパティを増やすこと。\r\n\r\n描画範囲の破線は、線の太さだけ内側に表示すること。これで、ツリーマップ描画後に破線が見え隠れしなくなる。\r\n\r\n\r\n"]

{"sheet":"systemWorkingSheet","index":1,"n_rows":20,"n_cols":1,"rows_kept":20,"cut":false,"hidden":true,"merged":[]}
[]
[]
[]
[]
[{"$f":" \"Total\" & CHAR(10) & TreeMap!$D$5","v":"Total\n517"}]
[{"$f":" \"Agri\" & CHAR(10) & TreeMap!$E$6","v":"Agri\n150"}]
[{"$f":" \"paddy\" & CHAR(10) & TreeMap!$F$7","v":"paddy\n50"}]
[{"$f":" \"farm\" & CHAR(10) & TreeMap!$F$8","v":"farm\n40"}]
[{"$f":" \"grazing\" & CHAR(10) & TreeMap!$F$9","v":"grazing\n60"}]
[{"$f":" \"Nature\" & CHAR(10) & TreeMap!$E$10","v":"Nature\n240"}]
[{"$f":" \"forest\" & CHAR(10) & TreeMap!$F$11","v":"forest\n140"}]
[{"$f":" \"plain\" & CHAR(10) & TreeMap!$F$12","v":"plain\n30"}]
[{"$f":" \"channel\" & CHAR(10) & TreeMap!$F$13","v":"channel\n45"}]
[{"$f":" \"lake\" & CHAR(10) & TreeMap!$F$14","v":"lake\n25"}]
[{"$f":" \"Road\" & CHAR(10) & TreeMap!$E$15","v":"Road\n45"}]
[{"$f":" \"Urban\" & CHAR(10) & TreeMap!$E$16","v":"Urban\n52"}]
[{"$f":" \"residential\" & CHAR(10) & TreeMap!$F$17","v":"residential\n25"}]
[{"$f":" \"industrial\" & CHAR(10) & TreeMap!$F$18","v":"industrial\n15"}]
[{"$f":" \"commercial etc\" & CHAR(10) & TreeMap!$F$19","v":"commercial etc\n12"}]
[{"$f":" \"Others\" & CHAR(10) & TreeMap!$E$20","v":"Others\n30"}]

{"sheet":"TreeMap","index":2,"n_rows":20,"n_cols":6,"rows_kept":20,"cut":false,"hidden":false,"merged":[]}
[]
[]
[]
[]
[null,"Total",null,517]
[null,"Agri",null,null,150]
[null,null,"paddy",null,null,50]
[null,null,"farm",null,null,40]
[null,null,"grazing",null,null,60]
[null,"Nature",null,null,240]
[null,null,"forest",null,null,140]
[null,null,"plain",null,null,30]
[null,null,"channel",null,null,45]
[null,null,"lake",null,null,25]
[null,"Road",null,null,45]
[null,"Urban",null,null,52]
[null,null,"residential",null,null,25]
[null,null,"industrial",null,null,15]
[null,null,"commercial etc",null,null,12]
[null,"Others",null,null,30]